fUST/lending_fUST_20240413
["ID","MTS","AMOUNT","RATE_DAILY","PERIOD"]
[322327042,1712955061465,-500.0,0.00066301,120]
[322327043,1712955061475,-572.69,0.00066301,120]
[322327044,1712955061484,-500.0,0.00066301,120]
[322327045,1712955061493,-11478.24,0.00066301,120]
[322327046,1712955061502,-300.0,0.00066301,7]
[322327047,1712955061512,-500.0,0.00066301,120]
[322327048,1712955061522,-1168.5,0.00066301,120]
[322327049,1712955061531,-860.37,0.00066301,120]
[322327050,1712955061540,-2849.42,0.00066301,21]
[322327051,1712955061551,-1162.52,0.00066301,120]
[322327052,1712955061561,-1197.24,0.00066301,120]
[322327053,1712955061575,-500.0,0.00066301,120]
[322327054,1712955061584,-500.0,0.00066301,120]
[322327055,1712955061593,-920.56,0.00066301,120]
[322327056,1712955061603,-500.0,0.00066301,120]
[322327057,1712955061612,-500.0,0.00066301,120]
[322327058,1712955061621,-565.84,0.00066301,120]
[322327059,1712955061631,-500.0,0.00066301,120]
[322327060,1712955061640,-500.0,0.00066301,120]
[322327061,1712955061649,-500.0,0.00066301,120]
[322327062,1712955061659,-1333.33,0.00066301,120]
[322327063,1712955061668,-500.0,0.00066301,120]
[322327064,1712955061678,-2333.51,0.00066301,120]
[322327065,1712955061687,-1669.23,0.00066301,120]
[322327066,1712955061697,-1860.05,0.00066301,120]
[322327067,1712955061707,-500.0,0.00066301,120]
[322327068,1712955061717,-4029.35,0.00066301,120]
[322327069,1712955061726,-1247.25,0.00066301,120]
[322327070,1712955061735,-8655.52,0.00066301,120]
[322327071,1712955061744,-153.51248377,0.00067097,120]
[322327072,1712955061753,-393.002314,0.00067772,2]
[322327073,1712955061763,-157.807356,0.00067772,2]
[322327074,1712955061772,-319.294618,0.00067772,2]
[322327075,1712955061781,-408.40723027,0.000679,120]
[322327076,1712955061791,-423.0,0.00068,120]
[322327077,1712955061800,-154.35341204,0.00068112,120]
[322327078,1712955061810,-507.35814863,0.00068219,120]
[322327079,1712955061822,-500.0,0.00068219,120]
[322327080,1712955061831,-500.0,0.00068219,120]
[322327081,1712955061840,-500.0,0.00068219,120]
[322327082,1712955061850,-512.60081208,0.00068219,120]
[322327083,1712955061859,-500.0,0.00068219,120]
[322327084,1712955061869,-561.66,0.00068219,120]
[322327085,1712955061879,-870.64,0.00068219,120]
[322327086,1712955061888,-524.73727855,0.00068219,120]
[322327087,1712955061900,-500.0,0.00068219,120]
[322327088,1712955061909,-500.0,0.00068219,120]
[322327089,1712955061919,-500.0,0.00068219,120]
[322327090,1712955061928,-1019.03,0.00068219,120]
[322327091,1712955061937,-500.0,0.00068219,120]
[322327092,1712955061948,-500.0,0.00068219,120]
[322327093,1712955061957,-500.0,0.00068219,120]
[322327094,1712955061967,-500.0,0.00068219,120]
[322327095,1712955061976,-500.0,0.00068219,120]
[322327096,1712955061985,-500.0,0.00068219,120]
[322327097,1712955061994,-500.0,0.00068219,120]
[322327098,1712955062004,-500.0,0.00068219,120]
[322327099,1712955062013,-500.0,0.00068219,120]
[322327100,1712955062022,-500.0,0.00068219,120]
[322327101,1712955062031,-500.0,0.00068219,120]
[322327102,1712955062040,-1581.45,0.00068219,60]
[322327103,1712955062049,-500.0,0.00068219,120]
[322327104,1712955062058,-500.0,0.00068219,120]
[322327105,1712955062069,-890.22,0.00068219,120]
[322327106,1712955062078,-229.11562185,0.00068219,120]
[322327107,1712955062087,-500.0,0.00068219,120]
[322327108,1712955062096,-500.0,0.00068219,120]
[322327109,1712955062105,-500.0,0.00068219,120]
[322327110,1712955062114,-500.0,0.00068219,120]
[322327111,1712955062122,-500.0,0.00068219,120]
[322327112,1712955062132,-500.0,0.00068219,120]
[322327113,1712955062140,-729.85,0.00068219,120]
[322327114,1712955062149,-772.73,0.00068219,120]
[322327115,1712955062158,-1547.65,0.00068219,120]
[322327116,1712955062167,-1540.92,0.00068219,120]
[322327117,1712955062176,-501.3116989,0.00068219,120]
[322327118,1712955062185,-500.0,0.00068219,120]
[322327119,1712955062194,-500.0,0.00068219,120]
[322327120,1712955062203,-853.08,0.00068219,120]
[322327121,1712955062213,-500.0,0.00068219,120]
[322327122,1712955062222,-500.0,0.00068219,120]
[322327123,1712955062231,-927.97,0.00068219,120]
[322327124,1712955062240,-500.0,0.00068219,120]
[322327125,1712955062249,-3281.2,0.00068219,120]
[322327126,1712955062259,-3093.01,0.00068219,120]
[322327127,1712955062268,-500.0,0.00068219,120]
[322327128,1712955062277,-500.0,0.00068219,120]
[322327129,1712955062288,-500.0,0.00068219,60]
[322327130,1712955062298,-500.0,0.00068219,120]
[322327131,1712955062307,-500.0,0.00068219,120]
[322327132,1712955062317,-1026.41,0.00068219,120]
[322327133,1712955062326,-500.0,0.00068219,120]
[322327134,1712955062335,-2960.04,0.00068219,120]
[322327135,1712955062345,-2768.02,0.00068219,120]
[322327136,1712955062354,-500.0,0.00068219,120]
[322327137,1712955062363,-1078.82,0.00068219,120]
[322327138,1712955062372,-500.0,0.00068219,120]
[322327139,1712955062381,-2212.06,0.00068219,120]
[322327140,1712955062391,-1471.15,0.00068219,120]
[322327141,1712955062400,-822.44,0.00068219,120]
[322327142,1712955062410,-1173.85,0.00068219,120]
[322327143,1712955062419,-1337.04,0.00068219,120]
[322327144,1712955062428,-500.0,0.00068219,120]
[322327145,1712955062437,-500.0,0.00068219,120]
[322327146,1712955062446,-1071.4,0.00068219,120]
[322327147,1712955062455,-506.68,0.00068219,120]
[322327148,1712955062464,-36278.98,0.00068219,120]
[322327149,1712955062473,-533.59,0.00068219,120]
[322327150,1712955062483,-500.0,0.00068219,120]
[322327151,1712955062492,-500.0,0.00068219,120]
[322327152,1712955062501,-500.0,0.00068219,120]
[322327153,1712955062511,-500.0,0.00068219,120]
[322327154,1712955062520,-572.69,0.00068219,120]
[322327155,1712955062529,-500.0,0.00068219,120]
[322327156,1712955062539,-11478.24,0.00068219,120]
[322327157,1712955062548,-210.74769509,0.00068219,120]
[322327158,1712955062557,-1168.5,0.00068219,120]
[322327159,1712955062568,-860.37,0.00068219,120]
[322327160,1712955062577,-2849.42,0.00068219,21]
[322327161,1712955062586,-1162.52,0.00068219,120]
[322327162,1712955062595,-1197.24,0.00068219,120]
[322327163,1712955062604,-500.0,0.00068219,120]
[322327164,1712955062613,-500.0,0.00068219,120]
[322327165,1712955062622,-920.56,0.00068219,120]
[322327166,1712955062631,-500.0,0.00068219,120]
[322327167,1712955062640,-500.0,0.00068219,120]
[322327168,1712955062649,-429.13390051,0.00068219,120]
[322327169,1712955062659,-500.0,0.00068219,120]
[322327170,1712955062668,-500.0,0.00068219,120]
[322327171,1712955062677,-1333.33,0.00068219,120]
[322327172,1712955062687,-2333.51,0.00068219,120]
[322327173,1712955062696,-1669.23,0.00068219,120]
[322327174,1712955062705,-1860.05,0.00068219,120]
[322327175,1712955062715,-4029.35,0.00068219,120]
[322327176,1712955062801,-1247.25,0.00068219,120]
[322327177,1712955062811,-8655.52,0.00068219,120]
[322327178,1712955062821,-163.300486,0.00068493,2]
[322327179,1712955062831,-357.409207,0.00068645,120]
[322327180,1712955062839,-329.407686,0.00068645,120]
[322327181,1712955062848,-536.11381,0.00068645,120]
[322327182,1712955062857,-494.11153,0.00068645,120]
[322327183,1712955062866,-160.090177,0.00068645,120]
[322327184,1712955062880,-200.022929,0.00068645,120]
[322327185,1712955062889,-927.238788,0.00068645,120]
[322327186,1712955062898,-854.850571,0.00068645,120]
[322327187,1712955062907,-2603.401212,0.00068645,120]
[322327188,1712955062918,-2400.157371,0.00068645,120]
[322327189,1712955062927,-423.0,0.00068767,120]
[322327190,1712955062937,-154.82968734,0.00069,7]
[322327191,1712955062947,-156.33789011,0.00069273,120]
[322327192,1712955062957,-357.409207,0.00069503,120]
[322327193,1712955062966,-329.407686,0.00069503,120]
[322327194,1712955062975,-536.11381,0.00069503,120]
[322327195,1712955062984,-494.11153,0.00069503,120]
[322327196,1712955062993,-927.238788,0.00069503,120]
[322327197,1712955063002,-854.850571,0.00069503,120]
[322327198,1712955063012,-2603.401212,0.00069503,120]
[322327199,1712955063021,-2400.157371,0.00069503,120]
[322327200,1712955063031,-160.771138,0.00069547,120]
[322327201,1712955063041,-153.51248377,0.00069622,120]
[322327202,1712955063049,-480.25,0.0007,120]
[322327203,1712955063058,-5000.0,0.0007,120]
[322327204,1712955063068,-168.645527,0.000701,2]
[322327205,1712955063079,-500.0,0.00070136,120]
[322327206,1712955063090,-500.0,0.00070136,120]
[322327207,1712955063102,-561.66,0.00070136,120]
[322327208,1712955063112,-870.64,0.00070136,120]
[322327209,1712955063121,-500.0,0.00070136,120]
[322327210,1712955063131,-500.0,0.00070136,120]
[322327211,1712955063140,-500.0,0.00070136,120]
[322327212,1712955063149,-1019.03,0.00070136,120]
[322327213,1712955063158,-500.0,0.00070136,120]
[322327214,1712955063168,-500.0,0.00070136,120]
[322327215,1712955063177,-500.0,0.00070136,120]
[322327216,1712955063186,-500.0,0.00070136,120]
[322327217,1712955063196,-500.0,0.00070136,120]
[322327218,1712955063205,-500.0,0.00070136,120]
[322327219,1712955063214,-151.8318696,0.00070136,120]
[322327220,1712955063223,-500.0,0.00070136,120]
[322327221,1712955063232,-500.0,0.00070136,120]
[322327222,1712955063242,-1581.45,0.00070136,60]
[322327223,1712955063251,-500.0,0.00070136,120]
[322327224,1712955063261,-890.22,0.00070136,120]
[322327225,1712955063270,-500.0,0.00070136,120]
[322327226,1712955063279,-500.0,0.00070136,120]
[322327227,1712955063289,-500.0,0.00070136,120]
[322327228,1712955063298,-500.0,0.00070136,120]
[322327229,1712955063307,-500.0,0.00070136,120]
[322327230,1712955063320,-500.0,0.00070136,120]
[322327231,1712955063331,-729.85,0.00070136,120]
[322327232,1712955063341,-772.73,0.00070136,120]
[322327233,1712955063351,-1547.65,0.00070136,120]
[322327234,1712955063361,-1540.92,0.00070136,120]
[322327235,1712955063371,-853.08,0.00070136,120]
[322327236,1712955063382,-500.0,0.00070136,120]
[322327237,1712955063392,-500.0,0.00070136,120]
[322327238,1712955063402,-500.0,0.00070136,120]
[322327239,1712955063411,-927.97,0.00070136,120]
[322327240,1712955063420,-500.0,0.00070136,120]
[322327241,1712955063430,-3281.2,0.00070136,120]
[322327242,1712955063439,-3093.01,0.00070136,120]
[322327243,1712955063449,-500.0,0.00070136,120]
[322327244,1712955063458,-500.0,0.00070136,120]
[322327245,1712955063468,-500.0,0.00070136,60]
[322327246,1712955063477,-1026.41,0.00070136,120]
[322327247,1712955063487,-500.0,0.00070136,120]
[322327248,1712955063497,-2960.04,0.00070136,120]
[322327249,1712955063506,-2768.02,0.00070136,120]
[322327250,1712955063515,-500.0,0.00070136,120]
[322327251,1712955063526,-1078.82,0.00070136,120]
[322327252,1712955063536,-268.11855882,0.00070136,120]
[322327253,1712955063545,-2212.06,0.00070136,120]
[322327254,1712955063554,-1471.15,0.00070136,120]
[322327255,1712955063564,-822.44,0.00070136,120]
[322327256,1712955063576,-1173.85,0.00070136,120]
[322327257,1712955063585,-1337.04,0.00070136,120]
[322327258,1712955063595,-500.0,0.00070136,120]
[322327259,1712955063604,-500.0,0.00070136,120]
[322327260,1712955063613,-1071.4,0.00070136,120]
[322327261,1712955063622,-506.68,0.00070136,120]
[322327262,1712955063632,-36278.98,0.00070136,120]
[322327263,1712955063642,-533.59,0.00070136,120]
[322327264,1712955063651,-500.0,0.00070136,120]
[322327265,1712955063661,-500.0,0.00070136,120]
[322327266,1712955063671,-572.69,0.00070136,120]
[322327267,1712955063680,-500.0,0.00070136,120]
[322327268,1712955063690,-11478.24,0.00070136,120]
[322327269,1712955063700,-1168.5,0.00070136,120]
[322327270,1712955063710,-860.37,0.00070136,120]
[322327271,1712955063719,-2849.42,0.00070136,21]
[322327272,1712955063728,-1162.52,0.00070136,120]
[322327273,1712955063738,-1197.24,0.00070136,120]
[322327274,1712955063747,-500.0,0.00070136,120]
[322327275,1712955063757,-381.8487186,0.00070136,120]
[322327276,1712955063766,-920.56,0.00070136,120]
[322327277,1712955063776,-500.0,0.00070136,120]
[322327278,1712955063785,-500.0,0.00070136,120]
[322327279,1712955063794,-500.0,0.00070136,120]
[322327280,1712955063803,-500.0,0.00070136,120]
[322327281,1712955063812,-1333.33,0.00070136,120]
[322327282,1712955063826,-2333.51,0.00070136,120]
[322327283,1712955063835,-1860.05,0.00070136,120]
[322327284,1712955063844,-1669.23,0.00070136,120]
[322327285,1712955063855,-4029.35,0.00070136,120]
[322327286,1712955063865,-1247.25,0.00070136,120]
[322327287,1712955063874,-8655.52,0.00070136,120]
[322327288,1712955063884,-154.35341204,0.00070199,120]
[322327289,1712955063896,-154.35341204,0.00070345,120]
[322327290,1712955063905,-153.51248377,0.00070353,120]
[322327291,1712955063914,-357.409207,0.00070361,120]
[322327292,1712955063923,-329.407686,0.00070361,120]
[322327293,1712955063933,-536.11381,0.00070361,120]
[322327294,1712955063942,-494.11153,0.00070361,120]
[322327295,1712955063951,-927.238788,0.00070361,120]
[322327296,1712955063962,-854.850571,0.00070361,120]
[322327297,1712955063971,-2603.401212,0.00070361,120]
[322327298,1712955063981,-2400.157371,0.00070361,120]
[322327299,1712955063990,-154.35341207,0.00070652,120]
[322327300,1712955064000,-156.33789011,0.00070869,120]
[322327301,1712955064009,-357.409207,0.00071219,120]
[322327302,1712955064018,-329.407686,0.00071219,120]
[322327303,1712955064027,-536.11381,0.00071219,120]
[322327304,1712955064037,-494.11153,0.00071219,120]
[322327305,1712955064047,-927.238788,0.00071219,120]
[322327306,1712955064057,-854.850571,0.00071219,120]
[322327307,1712955064067,-2603.401212,0.00071219,120]
[322327308,1712955064077,-2400.157371,0.00071219,120]
[322327309,1712955064087,-6143.354597,0.000715,120]
[322327310,1712955064097,-423.0,0.00071918,120]
[322327311,1712955064106,-3399.4407762,0.00072,120]
[322327312,1712955064116,-500.0,0.00072054,120]
[322327313,1712955064125,-319.01985562,0.00072054,120]
[322327314,1712955064134,-561.66,0.00072054,120]
[322327315,1712955064144,-870.64,0.00072054,120]
[322327316,1712955064153,-500.0,0.00072054,120]
[322327317,1712955064163,-512.11436981,0.00072054,120]
[322327318,1712955064172,-500.0,0.00072054,120]
[322327319,1712955064181,-1019.03,0.00072054,120]
[322327320,1712955064190,-500.0,0.00072054,120]
[322327321,1712955064199,-603.8304233,0.00072054,120]
[322327322,1712955064208,-453.22150382,0.00072054,120]
[322327323,1712955064217,-539.21,0.00072054,120]
[322327324,1712955064226,-500.0,0.00072054,120]
[322327325,1712955064236,-500.0,0.00072054,120]
[322327326,1712955064245,-500.0,0.00072054,120]
[322327327,1712955064254,-1581.45,0.00072054,60]
[322327328,1712955064264,-500.0,0.00072054,120]
[322327329,1712955064273,-890.22,0.00072054,120]
[322327330,1712955064282,-324.59005508,0.00072054,120]
[322327331,1712955064291,-417.46492653,0.00072054,120]
[322327332,1712955064301,-500.0,0.00072054,120]
[322327333,1712955064310,-500.0,0.00072054,120]
[322327334,1712955064322,-500.0,0.00072054,120]
[322327335,1712955064331,-555.04481474,0.00072054,120]
[322327336,1712955064340,-729.85,0.00072054,120]
[322327337,1712955064349,-772.73,0.00072054,120]
[322327338,1712955064357,-1547.65,0.00072054,120]
[322327339,1712955064366,-1540.92,0.00072054,120]
[322327340,1712955064375,-853.08,0.00072054,120]
[322327341,1712955064384,-500.0,0.00072054,120]
[322327342,1712955064394,-500.0,0.00072054,120]
[322327343,1712955064403,-500.0,0.00072054,120]
[322327344,1712955064412,-927.97,0.00072054,120]
[322327345,1712955064421,-500.0,0.00072054,120]
[322327346,1712955064431,-3281.2,0.00072054,120]
[322327347,1712955064440,-3093.01,0.00072054,120]
[322327348,1712955064449,-500.0,0.00072054,120]
[322327349,1712955064459,-1026.41,0.00072054,120]
[322327350,1712955064468,-500.0,0.00072054,120]
[322327351,1712955064478,-2960.04,0.00072054,120]
[322327352,1712955064487,-2768.02,0.00072054,120]
[322327353,1712955064496,-500.0,0.00072054,120]
[322327354,1712955064505,-1078.82,0.00072054,120]
[322327355,1712955064514,-2212.06,0.00072054,120]
[322327356,1712955064523,-1471.15,0.00072054,120]
[322327357,1712955064532,-822.44,0.00072054,120]
[322327358,1712955064541,-1173.85,0.00072054,120]
[322327359,1712955064550,-1337.04,0.00072054,120]
[322327360,1712955064559,-500.0,0.00072054,120]
[322327361,1712955064570,-1071.4,0.00072054,120]
[322327362,1712955064579,-506.68,0.00072054,120]
[322327363,1712955064588,-36278.98,0.00072054,120]
[322327364,1712955064597,-533.59,0.00072054,120]
[322327365,1712955064607,-500.0,0.00072054,120]
[322327366,1712955064616,-572.69,0.00072054,120]
[322327367,1712955064625,-500.0,0.00072054,120]
[322327368,1712955064634,-11478.24,0.00072054,120]
[322327369,1712955064643,-1168.5,0.00072054,120]
[322327370,1712955064653,-860.37,0.00072054,120]
[322327371,1712955064662,-2849.42,0.00072054,21]
[322327372,1712955064671,-1162.52,0.00072054,120]
[322327373,1712955064680,-1197.24,0.00072054,120]
[322327374,1712955064689,-209.93944351,0.00072054,120]
[322327375,1712955064774,-920.56,0.00072054,120]
[322327376,1712955064783,-500.0,0.00072054,120]
[322327377,1712955064792,-500.0,0.00072054,120]
[322327378,1712955064802,-500.0,0.00072054,120]
[322327379,1712955064811,-500.0,0.00072054,120]
[322327380,1712955064822,-1333.33,0.00072054,120]
[322327381,1712955064832,-2333.51,0.00072054,120]
[322327382,1712955064841,-1860.05,0.00072054,120]
[322327383,1712955064850,-1669.23,0.00072054,120]
[322327384,1712955064860,-4029.35,0.00072054,120]
[322327385,1712955064869,-1247.25,0.00072054,120]
[322327386,1712955064883,-8655.52,0.00072054,120]
[322327387,1712955064892,-357.409207,0.00072077,120]
[322327388,1712955064901,-329.407686,0.00072077,120]
[322327389,1712955064910,-536.11381,0.00072077,120]
[322327390,1712955064920,-494.11153,0.00072077,120]
[322327391,1712955064929,-927.238788,0.00072077,120]
[322327392,1712955064939,-854.850571,0.00072077,120]
[322327393,1712955064948,-2603.401212,0.00072077,120]
[322327394,1712955064957,-2400.157371,0.00072077,120]
[322327395,1712955064968,-158.8994188,0.00072747,120]
[322327396,1712955064977,-156.33789011,0.00072912,120]
[322327397,1712955064986,-156.33789011,0.00073004,120]
[322327398,1712955064995,-153.51248381,0.00073419,120]
[322327399,1712955065005,-905.0,0.00073436,120]
[322327400,1712955065014,-393.002314,0.0007354,120]
[322327401,1712955065023,-157.807356,0.0007354,120]
[322327402,1712955065033,-319.294618,0.0007354,120]
[322327403,1712955065044,-1000.0,0.00073863,120]
[322327404,1712955065057,-156.33789017,0.00073895,120]
[322327405,1712955065070,-224.45584399,0.0007397,7]
[322327406,1712955065082,-230.0,0.0007397,35]
[322327407,1712955065093,-228.0,0.0007397,35]
[322327408,1712955065102,-2612.0,0.0007397,35]
[322327409,1712955065112,-369.0,0.00073972,14]
[322327410,1712955065121,-369.0,0.00073972,14]
[322327411,1712955065131,-500.0,0.00073972,120]
[322327412,1712955065140,-561.66,0.00073972,120]
[322327413,1712955065149,-870.64,0.00073972,120]
[322327414,1712955065159,-500.0,0.00073972,120]
[322327415,1712955065170,-589.90260677,0.00073972,120]
[322327416,1712955065180,-1019.03,0.00073972,120]
[322327417,1712955065190,-500.0,0.00073972,120]
[322327418,1712955065200,-218.09167192,0.00073972,120]
[322327419,1712955065210,-500.0,0.00073972,120]
[322327420,1712955065220,-500.0,0.00073972,120]
[322327421,1712955065230,-1581.45,0.00073972,60]
[322327422,1712955065240,-666.72,0.00073972,120]
[322327423,1712955065250,-666.72,0.00073972,120]
[322327424,1712955065260,-666.72,0.00073972,120]
[322327425,1712955065270,-666.72,0.00073972,120]
[322327426,1712955065280,-666.72,0.00073972,120]
[322327427,1712955065290,-666.72,0.00073972,120]
[322327428,1712955065301,-666.72,0.00073972,120]
[322327429,1712955065311,-666.72,0.00073972,120]
[322327430,1712955065324,-666.72,0.00073972,120]
[322327431,1712955065335,-666.72,0.00073972,120]
[322327432,1712955065345,-666.72,0.00073972,120]
[322327433,1712955065355,-500.0,0.00073972,120]
[322327434,1712955065366,-890.22,0.00073972,120]
[322327435,1712955065376,-500.0,0.00073972,120]
[322327436,1712955065386,-500.0,0.00073972,120]
[322327437,1712955065396,-500.0,0.00073972,120]
[322327438,1712955065406,-729.85,0.00073972,120]
[322327439,1712955065416,-772.73,0.00073972,120]
[322327440,1712955065426,-1547.65,0.00073972,120]
[322327441,1712955065436,-1540.92,0.00073972,120]
[322327442,1712955065445,-151.0,0.00073972,120]
[322327443,1712955065455,-853.08,0.00073972,120]
[322327444,1712955065464,-151.0,0.00073972,120]
[322327445,1712955065474,-927.97,0.00073972,120]
[322327446,1712955065483,-151.0,0.00073972,120]
[322327447,1712955065492,-151.0,0.00073972,120]
[322327448,1712955065502,-500.0,0.00073972,120]
[322327449,1712955065511,-3281.2,0.00073972,120]
[322327450,1712955065521,-3093.01,0.00073972,120]
[322327451,1712955065531,-500.0,0.00073972,120]
[322327452,1712955065542,-1712.696431,0.00073972,120]
[322327453,1712955065552,-1712.696431,0.00073972,120]
[322327454,1712955065561,-1026.41,0.00073972,120]
[322327455,1712955065573,-500.0,0.00073972,120]
[322327456,1712955065582,-2960.04,0.00073972,120]
[322327457,1712955065591,-549.63221,0.00073972,120]
[322327458,1712955065601,-2768.02,0.00073972,120]
[322327459,1712955065611,-549.63221,0.00073972,120]
[322327460,1712955065620,-151.0,0.00073972,120]
[322327461,1712955065630,-500.0,0.00073972,120]
[322327462,1712955065640,-151.0,0.00073972,120]
[322327463,1712955065649,-151.0,0.00073972,120]
[322327464,1712955065658,-1078.82,0.00073972,120]
[322327465,1712955065667,-2212.06,0.00073972,120]
[322327466,1712955065677,-1471.15,0.00073972,120]
[322327467,1712955065686,-822.44,0.00073972,120]
[322327468,1712955065696,-1173.85,0.00073972,120]
[322327469,1712955065705,-1337.04,0.00073972,120]
[322327470,1712955065714,-500.0,0.00073972,120]
[322327471,1712955065724,-1071.4,0.00073972,120]
[322327472,1712955065734,-506.68,0.00073972,120]
[322327473,1712955065743,-36278.98,0.00073972,120]
[322327474,1712955065753,-533.59,0.00073972,120]
[322327475,1712955065762,-151.0,0.00073972,120]
[322327476,1712955065771,-500.0,0.00073972,120]
[322327477,1712955065780,-572.69,0.00073972,120]
[322327478,1712955065790,-11478.24,0.00073972,120]
[322327479,1712955065799,-1168.5,0.00073972,120]
[322327480,1712955065809,-860.37,0.00073972,120]
[322327481,1712955065818,-2849.42,0.00073972,21]
[322327482,1712955065828,-1775.820772,0.00073972,14]
[322327483,1712955065838,-1775.820772,0.00073972,14]
[322327484,1712955065847,-151.0,0.00073972,120]
[322327485,1712955065857,-1162.52,0.00073972,120]
[322327486,1712955065866,-1197.24,0.00073972,120]
[322327487,1712955065876,-920.56,0.00073972,120]
[322327488,1712955065886,-542.84,0.00073972,120]
[322327489,1712955065898,-488.0,0.00073972,120]
[322327490,1712955065907,-216.456154,0.00073972,120]
[322327491,1712955065917,-216.456154,0.00073972,120]
[322327492,1712955065927,-327.01841101,0.00073972,120]
[322327493,1712955065939,-500.0,0.00073972,120]
[322327494,1712955065949,-1333.33,0.00073972,120]
[322327495,1712955065959,-2333.51,0.00073972,120]
[322327496,1712955065971,-151.000002,0.00073972,120]
[322327497,1712955065981,-1860.05,0.00073972,120]
[322327498,1712955065992,-151.0,0.00073972,120]
[322327499,1712955066003,-1669.23,0.00073972,120]
[322327500,1712955066012,-4029.35,0.00073972,120]
[322327501,1712955066022,-1247.25,0.00073972,120]
[322327502,1712955066032,-8655.52,0.00073972,120]
[322327503,1712955066041,-150.5,0.0007398,35]
[322327504,1712955066051,-230.0,0.0007398,35]
[322327505,1712955066061,-228.0,0.0007398,35]
[322327506,1712955066072,-2612.0,0.0007398,35]
[322327507,1712955066082,-150.5,0.0007399,35]
[322327508,1712955066091,-230.0,0.0007399,35]
[322327509,1712955066100,-228.0,0.0007399,35]
[322327510,1712955066110,-2612.0,0.0007399,35]
[322327511,1712955066119,-5766.188536,0.00074,120]
[322327512,1712955066128,-500.0,0.00074,120]
[322327513,1712955066137,-500.0,0.00074,120]
[322327514,1712955066147,-500.0,0.00074,120]
[322327515,1712955066156,-510.33,0.00074,120]
[322327516,1712955066166,-354.91,0.00074,120]
[322327517,1712955066175,-500.0,0.00074,120]
[322327518,1712955066185,-176.169986,0.00074888,2]
[322327519,1712955066195,-152.52252608,0.00074957,120]
[322327520,1712955066204,-228.0,0.0007497,35]
[322327521,1712955066214,-228.0,0.0007498,35]
[322327522,1712955066224,-1250.0,0.00074989,92]
[322327523,1712955066234,-228.0,0.0007499,35]
[322327524,1712955066244,-209.09087823,0.00074998,7]
[322327525,1712955066254,-154.9690062,0.00074998,7]
[322327526,1712955066263,-177.0,0.00075,30]
[322327527,1712955066273,-500000.0,0.00075,10]
[322327528,1712955066283,-151.0,0.00075,120]
[322327529,1712955066292,-280.740356,0.00075,120]
[322327530,1712955066301,-151.727212,0.00075,120]
[322327531,1712955066311,-151.0,0.00075,120]
[322327532,1712955066321,-326.622292,0.00075,120]
[322327533,1712955066330,-326.622292,0.00075,120]
[322327534,1712955066340,-1000.0,0.00075,120]
[322327535,1712955066349,-151.0,0.00075,120]
[322327536,1712955066359,-154.584726,0.00075,120]
[322327537,1712955066369,-544.70703,0.00075,120]
[322327538,1712955066378,-151.0,0.00075,120]
[322327539,1712955066387,-151.0,0.00075,120]
[322327540,1712955066396,-151.0,0.00075,120]
[322327541,1712955066405,-151.0,0.00075,120]